Cogmind - Beta 16.1 @@@ ROGUE MODE // 2026.04.23 @ 19:06:19 Player: beans Result: Destroyed by G-50 Soldier with Heavy Laser Performance ------------- Evolutions (1) 500 Regions Visited (5) 1000 Robots Destroyed (51) 255 Value Destroyed (945) 945 Prototype IDs (28) 560 Alien Tech Used (0) 0 Bonus (300) 300 TOTAL SCORE: 3560 Bonus ------- Aligned with FarCom 300 Cogmind --------- Core Integrity 0/400 Matter 272/300 Energy 98/100 System Corruption 11% Temperature Cool (20) Movement Walking (90) Location -8/Mines Parts ------- > --- POWER (1) -------- (None) > --- PROPULSION (2) --- Potential Leg Potential Leg > --- UTILITY (2) ------ (None) > --- WEAPON (4) ------- AWS/Thermal > --- INVENTORY (5) ---- Compact Wheel Hacking Suite Precision Beam Rifle Precision Beam Rifle Advanced Beam Cannon Peak State ------------ > --- POWER ------------ Cooled Ion Engine > --- PROPULSION ------- Potential Leg Potential Leg > --- UTILITY ---------- Heat Sink Heat Sink > --- WEAPON ----------- Precision Beam Rifle AWS/Thermal Improved Assault Rifle > --- INVENTORY -------- Compact Wheel Hacking Suite Precision Beam Rifle Precision Beam Rifle Advanced Beam Cannon [Rating: 49] Favorites ----------- Power Cooled Ion Engine Engine Cooled Ion Engine Propulsion Advanced Treads Treads Advanced Treads Leg Aluminum Leg Wheel Wheel Utility Heat Sink Device Heat Sink Protection Medium Armor Plating Weapon Improved Assault Rifle Energy Gun Precision Beam Rifle Energy Cannon Advanced Beam Cannon Ballistic Gun Improved Assault Rifle Launcher Grenade Launcher Build | -11 -10 -9 -9 -9 -8 ------- Run | Yrd Mat Mat Min Exi Min Slots Evolved 2 | . . 2 . . . Power . | . . . . . . Propulsion . | . . . . . . Utility . | . . . . . . Weapon 2 | . . 2 . . . Parts Attached 27 | 5 1 16 2 3 . Power 2 | 1 . 1 . . . Engine 2 | 1 . 1 . . . Core . | . . . . . . Reactor . | . . . . . . Propulsion 8 | 2 . 2 2 2 . Treads 2 | . . 2 . . . Leg 4 | 2 . . . 2 . Wheel 2 | . . . 2 . . Hover . | . . . . . . Flight . | . . . . . . Utility 3 | . . 3 . . . Device 2 | . . 2 . . . Storage . | . . . . . . Processor . | . . . . . . Hackware . | . . . . . . Protection 1 | . . 1 . . . Artifact . | . . . . . . Weapon 14 | 2 1 10 . 1 . Energy Gun 6 | . . 5 . 1 . Energy Cannon 2 | . . 2 . . . Ballistic Gun 5 | 2 . 3 . . . Ballistic Cannon . | . . . . . . Launcher 1 | . 1 . . . . Special Weapon . | . . . . . . Impact Weapon . | . . . . . . Slashing Weapon . | . . . . . . Piercing Weapon . | . . . . . . Special Melee Weapon . | . . . . . . Unidentified Prototypes 5 | . . 5 . . . Parts Lost 11 | . . 5 1 4 1 Power 1 | . . . . 1 . Propulsion 4 | . . 3 1 . . Utility 3 | . . 1 . 2 . Weapon 3 | . . 1 . 1 1 Highest Loss Streak 3 | . . 2 1 3 1 To Critical Strikes 3 | . . . . 3 . Average Backups 4 | . 1 3 5 5 5 Power . | . . . . . . Propulsion . | . . . . . 1 Utility . | . . 1 1 1 1 Weapon 3 | . 1 2 4 3 3 Tool/Special . | . . . . . . Unused Backups 1 | . . . . . 1 Power . | . . . . . . Propulsion . | . . . . . . Utility 1 | . . . . . 1 Weapon . | . . . . . . Tool/Special . | . . . . . . Average Slot Usage (%) 76 | . 59 58 91 86 38 Engine 8 | . 7 5 11 9 . Treads 7 | . . 16 7 . . Leg 6 | . 28 1 . 11 22 Wheel 4 | . . . 6 10 . Device 14 | . . 9 22 17 . Energy Gun 7 | . . 19 . 9 11 Energy Cannon 5 | . . . 11 5 . Ballistic Gun 21 | . 23 4 33 22 5 Peak Build Rating 49 | 5 5 24 21 49 40 Average Rating 19 | 3 4 14 20 33 38 On Entrance 15 | . 5 4 21 20 40 Avg Prop Armor Cover (%) 29 | . 26 32 . . . Naked Turns 40 | . . 40 . . . Heaviest Build 23 | 8 10 23 23 23 11 Greatest Support 60 | 20 20 44 26 60 60 Greatest Overweight (x) 7 | . . 3 7 . . Average Overweight (x) . | . . . . . . Largest Inventory Capacity 5 | 5 5 5 5 5 5 Average Capacity 5 | 5 5 5 5 5 5 Most Carried 5 | 2 4 5 5 5 5 Average Carried 4 | . 1 3 5 4 5 Final Capacity 5 | 5 5 5 5 5 5 Final Carried 5 | . 3 5 5 5 5 Class Distribution -------------------- 54% | Gunner 25% | Mutant 20% | Scavenger-Gunner Dominant Class ---------------- Mutant | -10/Materials Gunner | -9/Materials Gunner | -9/Mines Gunner | -9/Exiles Mutant | -8/Mines Resources | -11 -10 -9 -9 -9 -8 ----------- Run | Yrd Mat Mat Min Exi Min Matter Collected 983 | 165 87 403 248 38 42 Remotely . | . . . . . . Salvage Created 1572 | . 476 694 175 55 172 Parts 110 | . 37 40 25 . 8 Haulers Intercepted 2 | . . 2 . . . Recyclers Shooed 5 | . 5 . . . . Parts Field Recycled . | . . . . . . Retrieved Matter . | . . . . . . Parts Self-Destructed . | . . . . . . Prevented . | . . . . . . Parts Restored . | . . . . . . Kills | -11 -10 -9 -9 -9 -8 ------- Run | Yrd Mat Mat Min Exi Min Combat Hostiles Destroyed 36 | . 10 12 7 3 4 Melee 2 | . . 2 . . . Guns 25 | . 5 7 6 3 4 AOE 7 | . 5 2 . . . Classes Destroyed 13 | . 5 6 1 1 . Worker 1 | . . 1 . . . Builder 3 | . 1 1 1 . . Tunneler 1 | . . . 1 . . Hauler 2 | . . 2 . . . Recycler 7 | . 4 2 1 . . Operator 3 | . 2 1 . . . Watcher 1 | . . 1 . . . Swarmer 17 | . 6 3 7 . 1 Grunt 11 | . 4 5 . . 2 Brawler 2 | . . 1 . . 1 Duelist 1 | . . 1 . . . Sentry 2 | . . 2 . . . Assembled 3 | . . . . 3 . Best Kill Streak 8 | . 8 3 6 3 4 Combat Bots Only 5 | . 5 3 4 3 4 Max Kills in Single Turn 4 | . 4 2 2 1 1 Gunslinging . | . . . . . . Exploded 3 | . 3 2 . . . Melee 1 | . . 1 . . . Uniques/NPCs Destroyed . | . . . . . . Combat | -11 -10 -9 -9 -9 -8 -------- Run | Yrd Mat Mat Min Exi Min Hostile Shots Fired 277 | . 45 134 31 47 20 Missed 97 | . 18 55 10 9 5 Hits 180 | . 27 79 21 38 15 Melee 10 | . . 3 . 7 . Projectile 170 | . 27 76 21 31 15 Critical Strikes 23 | . . . 1 21 1 Damage Taken 2320 | . 291 833 173 791 232 Core 446 | . 43 183 . 171 49 Absorbed by Shields . | . . . . . . Core Remaining (%) 91 | 100 82 . . . . Volleys Fired 118 | . 45 47 14 10 2 Largest 4 | . 2 4 4 2 1 Hottest 183 | . 50 183 137 84 23 Shots Fired 296 | . 84 105 56 20 31 Gun 272 | . 81 99 42 19 31 Cannon 17 | . . 2 14 1 . Launcher 7 | . 3 4 . . . Special . | . . . . . . Kinetic 159 | . 81 24 42 10 2 Thermal 130 | . . 77 14 10 29 Explosive 7 | . 3 4 . . . Electromagnetic . | . . . . . . Robot Hit Streak 20 | . 9 20 6 13 9 Robot Miss Streak 4 | . 4 2 4 1 4 Penetration Max . | . . . . . . Secondary Targets 2 | . 1 1 . . . Max Gunslinging Chain 1 | . 1 1 . . . Autonomous 29 | . . . . . 29 Shots Hit Robots 172 | . 52 64 22 15 19 Core Hits 75 | . 29 23 11 6 6 Critical Kills 1 | . . . 1 . . Critical Parts Destroyed 1 | . . 1 . . . Critical Strikes 7 | . . 5 1 1 . Burn 5 | . . 4 . 1 . Meltdown 1 | . . . 1 . . Destroy 1 | . . 1 . . . Melee Attacks . | . . . . . . Impact . | . . . . . . Slashing . | . . . . . . Piercing . | . . . . . . Sneak Attacks . | . . . . . . Combat Hostiles . | . . . . . . Follow-up Attacks . | . . . . . . Damage Inflicted 3215 | . 907 1143 397 227 541 Guns 2690 | . 582 1020 336 211 541 Cannons 61 | . . . 61 . . Explosions 417 | . 325 92 . . . Melee . | . . . . . . Ramming 47 | . . 31 . 16 . Kinetic 1181 | . 582 125 336 125 13 Thermal 1570 | . . 895 61 86 528 Explosive 417 | . 325 92 . . . Electromagnetic . | . . . . . . Impact . | . . . . . . Slashing . | . . . . . . Piercing . | . . . . . . Highest Corruption 11 | . . 7 7 11 11 Average Corruption 6 | . . 4 7 8 11 Corruption Purged . | . . . . . . Corruption Blocked . | . . . . . . Effects 45 | . . 8 22 14 1 Message Errors 12 | . . 2 6 4 . Matter Fused 15 | . . 4 8 2 1 Heat Flow Errors 4 | . . 1 2 1 . Energy Discharges 3 | . . 1 2 . . Parts Fused 1 | . . . . 1 . Data Loss (minor) 2 | . . . 2 . . Data Loss (major) 5 | . . . 2 3 . Misfires 1 | . . . . 1 . Misdirections 2 | . . . . 2 . Overload Shots . | . . . . . . Overflow Damage . | . . . . . . Projectiles . | . . . . . . Explosions . | . . . . . . Melee . | . . . . . . Knockbacks . | . . . . . . Impact . | . . . . . . Kinetic . | . . . . . . Secondary . | . . . . . . Self-Inflicted Damage 6 | . 1 5 . . . Shots 2 | . 1 1 . . . Rammed 24 | . . 24 . . . Targets Rammed 32 | . . 26 . 6 . Kicked 6 | . . . . 6 . Crushed 2 | . . 2 . . . Highest Temperature 262 | . 6 262 236 150 10 Average Temperature 77 | . 3 81 112 49 10 Received Heat Transfer 492 | . 123 234 . . 135 Siege Activations . | . . . . . . Martial Activations . | . . . . . . Shielding Activations . | . . . . . . Robots Disrupted . | . . . . . . Combat Hostiles . | . . . . . . Robots Corrupted . | . . . . . . Combat Hostiles . | . . . . . . Parts Fried . | . . . . . . Impact Corruptions . | . . . . . . Robots Melted 2 | . . 1 1 . . Combat Hostiles 2 | . . 1 1 . . Parts Melted 11 | . . 6 3 . 2 Heat Transferred 3311 | . . 2257 111 277 666 Parts Sabotaged . | . . . . . . Parts Stolen . | . . . . . . Parts Stripped . | . . . . . . Power Chain Reactions . | . . . . . . Alert | -11 -10 -9 -9 -9 -8 ------- Run | Yrd Mat Mat Min Exi Min Maximum Alert Level 1 | . 1 1 . . . Low Security (%) 70 | 100 80 15 100 . 100 Level 1 29 | . 19 84 . . . Level 2 . | . . . . . . Level 3 . | . . . . . . Level 4 . | . . . . . . Level 5 . | . . . . . . High Security . | . . . . . . Max Security . | . . . . . . Peak Influence 351 | . 249 351 130 . 86 Initial 124 | . . 104 124 . . Average 130 | . 126 284 47 . 26 Influence Increases 1152 | . 349 521 175 . 107 Destroy 0b10 Robot/C 660 | . 200 240 140 . 80 Destroy 0b10 Robot/NC 90 | . 35 40 15 . . Destroy Leader 146 | . 50 56 20 . 20 Disable Machine 30 | . . 30 . . . Destroy Structure 46 | . 19 20 . . 7 Lose Combat Pursuer 180 | . 45 135 . . . Influence Decreases 1066 | . 100 449 425 71 21 Entered New Map 413 | . . 145 197 71 . Time Decay 593 | . 100 254 228 . 11 Lost Part 60 | . . 50 . . 10 Squads Dispatched 3 | . 2 1 . . . Investigation . | . . . . . . Extermination . | . . . . . . Reinforcement 3 | . 2 1 . . . Assault . | . . . . . . Garrison . | . . . . . . Intercept . | . . . . . . Searches Triggered . | . . . . . . Construction Impeded . | . . . . . . Haulers Reinforced . | . . . . . . Active Scanning Responses . | . . . . . . Cargo Convoy Interrupts . | . . . . . . Stealth | -11 -10 -9 -9 -9 -8 --------- Run | Yrd Mat Mat Min Exi Min Distress Signals 3 | . 2 1 . . . Communications Jammed . | . . . . . . Distress Signals . | . . . . . . Times Spotted 61 | . 16 25 7 4 9 Peak Tracking Total 9 | . 6 8 2 9 6 Tactical Retreats 6 | . 2 3 . 1 . Traps | -11 -10 -9 -9 -9 -8 ------- Run | Yrd Mat Mat Min Exi Min Traps Triggered . | . . . . . . Indirectly . | . . . . . . Trap Hack Attempts . | . . . . . . Triggered . | . . . . . . Disarmed . | . . . . . . Reprogrammed . | . . . . . . Reused . | . . . . . . Traps Extracted . | . . . . . . Installed . | . . . . . . Triggered . | . . . . . . Machines | -11 -10 -9 -9 -9 -8 ---------- Run | Yrd Mat Mat Min Exi Min Machines Disabled 4 | . . 3 . 1 . Max in Single Turn 1 | . . 1 . 1 . Machines Repaired . | . . . . . . Machines Dismantled . | . . . . . . Machines Sabotaged . | . . . . . . Overloaded Fab Kills . | . . . . . . Hacking | -11 -10 -9 -9 -9 -8 --------- Run | Yrd Mat Mat Min Exi Min Machines Accessed 1 | . . . . 1 . Terminals . | . . . . . . Fabricators . | . . . . . . Repair Stations . | . . . . . . Recycling Units . | . . . . . . Scanalyzers . | . . . . . . Garrison Access . | . . . . . . Total Hacks 1 | . . . . 1 . Successful 1 | . . . . 1 . Failed . | . . . . . . Catastrophic . | . . . . . . Database Lockouts . | . . . . . . Manual 1 | . . . . 1 . Terminals . | . . . . . . Fabricators . | . . . . . . Repair Stations . | . . . . . . Recycling Units . | . . . . . . Scanalyzers . | . . . . . . Garrison Access . | . . . . . . Terminal Hacks 1 | . . . . 1 . Proto ID Catalog 1 | . . . . 1 . Fabricator Hacks . | . . . . . . Repair Station Hacks . | . . . . . . Recycling Unit Hacks . | . . . . . . Scanalyzer . | . . . . . . Garrison Access Hacks . | . . . . . . Unauthorized Hacks . | . . . . . . Terminals . | . . . . . . Fabricators . | . . . . . . Repair Stations . | . . . . . . Recycling Units . | . . . . . . Scanalyzers . | . . . . . . Garrison Access . | . . . . . . Data Cores Recovered . | . . . . . . Used . | . . . . . . Hacking Detections . | . . . . . . Full Trace Events . | . . . . . . Feedback Events . | . . . . . . Feedback Blocked . | . . . . . . Robot Schematics Acquired . | . . . . . . Robots Built . | . . . . . . Authchips . | . . . . . . Time . | . . . . . . Total Robot Build Rating . | . . . . . . Part Schematics Acquired . | . . . . . . Parts Built . | . . . . . . Authchips . | . . . . . . Time . | . . . . . . Total Part Build Rating . | . . . . . . Part Studies Acquired . | . . . . . . Parts Repaired . | . . . . . . Time . | . . . . . . Parts Recycled . | . . . . . . Recycled Matter . | . . . . . . Retrieved Matter . | . . . . . . Retrieved Components . | . . . . . . Parts Scanalyzed . | . . . . . . Part Schematics Acquired . | . . . . . . Parts Damaged . | . . . . . . Bothacking | -11 -10 -9 -9 -9 -8 ------------ Run | Yrd Mat Mat Min Exi Min Used RIF Installer . | . . . . . . Robots Hacked . | . . . . . . Non-combat . | . . . . . . Combat . | . . . . . . Robot Hacks Applied . | . . . . . . Relay Couplers Released . | . . . . . . Fabnet Peak Effective % . | . . . . . . Robots Rewired . | . . . . . . Allies Hacked . | . . . . . . Hacks Repelled . | . . . . . . Allies | -11 -10 -9 -9 -9 -8 -------- Run | Yrd Mat Mat Min Exi Min Total Allies 1 | . . . 1 . . Largest Group 1 | . . . 1 1 . Highest-Rated Group 31 | . . . 31 31 . Highest-Rated Ally 31 | . . . 31 31 . Total Orders . | . . . . . . Ally Attacks . | . . . . . . Total Damage . | . . . . . . Kills . | . . . . . . Allies Corrupted . | . . . . . . Allies Melted . | . . . . . . Intel | -11 -10 -9 -9 -9 -8 ------- Run | Yrd Mat Mat Min Exi Min Active Infowar (turns) . | . . . . . . Robot Analysis Total . | . . . . . . Derelict Logs Recovered 2 | . . . 2 . . Drone Launches . | . . . . . . Drone Recoveries . | . . . . . . Exploration | -11 -10 -9 -9 -9 -8 ------------- Run | Yrd Mat Mat Min Exi Min Turns Passed 2114 | 39 226 551 875 373 50 Spaces Moved 1335 | 34 144 344 498 257 58 Core 319 | 16 110 192 1 . . Treads 416 | . . 152 264 . . Legs 250 | 18 34 . . 140 58 Wheels 350 | . . . 233 117 . Hover . | . . . . . . Flight . | . . . . . . Fastest Speed 45 | 50 50 50 90 45 45 Average Speed 112 | 87 66 95 162 75 76 Slowest Speed 400 | 120 120 225 400 90 90 Overloaded Moves 99 | . . . . 81 18 Propulsion Burnouts . | . . . . . . Robots Hopped . | . . . . . . Potential Cave-ins . | . . . . . . Cave-ins Triggered . | . . . . . . Exploration Rate (%) 41 | 3 34 28 97 61 27 Regions Visited 5 Branch Regions 3 Pre-discovered Areas 1 | . . . 1 . . Known Exits Taken . | . . . . . . Unknown Exits Taken 5 | 1 1 1 1 1 . Scrap Searched 2 | . . . 2 . . Spaces Dug 9 | . . 9 . . . Terrain Destroyed 50 | . 16 27 . . 7 Melee . | . . . . . . Projectile 7 | . . . . . 7 AOE 43 | . 16 27 . . . Terrain Rammed . | . . . . . . Walls Destroyed . | . . . . . . Machines Disabled . | . . . . . . Actions | -11 -10 -9 -9 -9 -8 --------- Run | Yrd Mat Mat Min Exi Min Total 1716 | 43 197 472 527 415 62 Wait 157 | . 1 14 14 126 2 Move 1330 | 33 143 343 497 256 58 Hop . | . . . . . . Pick Up 17 | 5 2 9 . 1 . Fast Attach 15 | . . 8 2 5 . Attach 18 | 5 2 10 . 1 . Detach 10 | . 3 7 . . . Swap 5 | . 1 2 . 2 . Drop 13 | . . 6 . 7 . Fire 118 | . 45 47 14 10 2 Melee . | . . . . . . Ram 1 | . . . . 1 . Kick 6 | . . . . 6 . Crush 26 | . . 26 . . . Escape Stasis . | . . . . . . Rewire . | . . . . . . Trap . | . . . . . . Miscellaneous . | . . . . . . Route ------- -11/Scrapyard -10/Materials -9/Materials -9/Mines (discovered 3 exits: [*Mat x2] / *Exi) -9/Exiles (discovered 2 exits: [*Min x2]) -8/Mines History --------- Turn | Location | Event 5 | -11/Scrapyard | Discovered new exit (range 16) 40 | -11/Scrapyard | Entered Materials 212 | -10/Materials | Discovered new exit (range 15) 266 | -10/Materials | Entered another Materials area 266 | -9/Materials | Evolved 2 slots: Weapon x2 314 | -9/Materials | Build established: Mutant 755 | -9/Materials | Discovered new exit (range 11) 816 | -9/Materials | Build established: Gunner 817 | -9/Materials | Entered Mines 849 | -9/Mines | Learned Materials emergency access door positions 932 | -9/Mines | Discovered new exit (range 11) 971 | -9/Mines | Learned location of Storage (-9) 1276 | -9/Mines | Found a hidden stash of uninstalled traps 1477 | -9/Mines | Discovered new exit (range 3) 1519 | -9/Mines | Escorted by a lone wolf Derelict 1673 | -9/Mines | Deemed a non-threat by the Exiles lab entrance 1673 | -9/Mines | Discovered new exit (range 5) 1692 | -9/Mines | Entered Exiles 1692 | -9/Exiles | Accompanied by 1 ally 1706 | -9/Exiles | Discovered new exit (range 15) 1717 | -9/Exiles | Met 8R-AWN 1732 | -9/Exiles | Build established: Scavenger-Gunner 1797 | -9/Exiles | Met EX-HEX 1825 | -9/Exiles | Met EX-BIN 1836 | -9/Exiles | Aligned with FarCom system 1837 | -9/Exiles | Given EX-Vault access code 1858 | -9/Exiles | Opened EX-Vault 1864 | -9/Exiles | Found Potential Leg 1866 | -9/Exiles | Found Potential Leg 1878 | -9/Exiles | Found AWS/Thermal 1912 | -9/Exiles | Attacked by the Exiles 1968 | -9/Exiles | Core integrity fell below 50% 1971 | -9/Exiles | System corruption reached 10% 2045 | -9/Exiles | Core integrity fell below 20% 2057 | -9/Exiles | Lost 3 parts (1p1u1w) 2061 | -9/Exiles | Discovered new exit (range 10) 2065 | -9/Exiles | Stole two prototypes: AWS/Thermal, Potential Leg 2065 | -9/Exiles | Entered Mines 2115 | -8/Mines | Destroyed by G-50 Soldier with Heavy Laser Last Messages --------------- LOCATION=UNKNOWN GOAL=ESCAPE K-01 Serf collects debris. B-36 Bruiser destroyed. Critical hit (Burn: +37). Imp. Assault Rifle destroyed. Aluminum Leg melted. G-47 Trooper destroyed. Acquired 42 matter. Destroyed Lgt. Nuclear Core. T-07 Excavator is excavating. G-47 Trooper heat spikes uncontrollably. G-47 Trooper overheating. Melted Aluminum Leg. G-47 Trooper overheating. T-07 Excavator is excavating. G-47 Trooper overheating. G-47 Trooper destroyed. S-10 Pest destroyed. System corrupted: Matter fused (-8). Map ----- +----------------------------------------------------+ | | | | | | | | | | | | | | | | | | | ????????????????????????????????????????????????? | | ????????????????????????????????????????????????? | | ????????????????????????????????????????????????? | | ????????????????????????????????????????????????? | | ????????????????????????????????????????????????? | | ??????????????###???????????????????????????????? | | ??????????????# #??#######?????????????????????? | | ??????????????# #### ##????????????????????? | | ??????????????# ############?????????? | | ??????????????# #?# =[ ???????? | | ??????????????# ### *%= ???????? | | ????????????### ## #########??????????? | | ???????????## ##??????????????????? | | ???????????# ##???????????????????? | | ??????????## ##????????????????????? | | ?????????## ##?????????????????????? | | ?????????# @#??????????????????????? | | ?????????# #?????????????????????? | | ????????#; g%[ #????????????????????? | | ???###??#"#[g;;## ??????????????????? | | ??## #?#?# !##?## ## ?????????????????? | | ??# ##?#*%#???## ######### ?????????????????? | | ??# ### #????####????????? ????????????????? | | ??# "" #?????????????????? ???????????????? | | ?## " #??????????????????? ?????????????? | | ?# #????????????????????##????????????? | | ?# #??????????????????????????????????? | | ?## #??????????????????????????????????? | | ??# #??????????????????????????????????? | | ??# ##?????????????????????????????????? | | ??## #?????????????????????????????????? | | ???## #?????????????????????????????????? | | ????# ##?????????????????????????????????? | | ????# #??????????????????????????????????? | | ????## ## #???????????????????????????? | | ?????# #### #### #???????????????????????????? | | ?????# #???####?????????????????????????????????? | | ?????# #????????????????????????????????????????? | | ?????# #????????????????????????????????????????? | | ?????# #??#####?????????????????????????????????? | | ?????# #??# ??????????????????????????????????? | +----------------------------------------------------+ Best States ------------- Heat Dissipation 48 Energy Generation 14 Energy Capacity 280 Matter Stores 300 Matter Capacity 300 Sight Range 16 Terrain Scan Density 10 Armor Coverage 225 Evasion (%) 66 Recoil Reduction 2 Item Schematics ----------------- None Robot Schematics ------------------ None Fabricated ------------ Nothing Repaired ---------- Nothing Studied --------- None Alien Tech Used ----------------- None Achievements -------------- None Challenges ------------ None Game ------ Seed DataProtonDiverter Manual? 0 Play Time 00:12:58 Cumulative 275.5 hours Start 2026.04.23 @ 18:54:06 End 2026.04.23 @ 19:06:19 Sessions 1 Manual Loads 0 Difficulty Rogue Special Mode None Game No. 728 Rogue 726 Adventurer 2 Explorer 0 Win Type - Total 0 Types 0/0/0/0/0/0/0/0/0/0 Lore% 68 Gallery% 64 Achievement% 45 Wizard Run 0 Options --------- Layout 2 ASCII 0 Keyboard 0 Movement Mouse Keybinds 0 Fullscreen 1 Font 24/Smallcaps Map View 50x44 Zoom Use 0% Tactical HUD 0 Map Filters NONE Filters NONE Steam 1 RUN: 03b0344a-de56-49e2-94f2-9332473040e9